[Event "Titled Tuesday Blitz August 22 Early 2023"]
[White "Cagara, Paulina"]
[Black "Prudnykova, Olga"]
[WhiteFideId "1124870"]
[BlackFideId "14121093"]
[WhiteElo "2148"]
[BlackElo "2385"]
[Result "0-1"]
[Round "7"]
[TimeControl "180+1"]
[Date "2023.08.22"]
[WhiteClock "0:01:11"]
[BlackClock "0:00:57"]
[Board "179"]

1. e4 {[%clk 0:03:00]}  c5 {[%clk 0:02:59]} 2. Nc3 {[%clk 0:03:00]}  a6 {[%clk 0:02:59]} 3. f4 {[%clk 0:02:58]}  b5 {[%clk 0:02:59]} 4. Nf3 {[%clk 0:02:59]}  Bb7 {[%clk 0:02:58]} 5. d3 {[%clk 0:02:59]}  e6 {[%clk 0:02:58]} 6. Be3 {[%clk 0:02:58]}  b4 {[%clk 0:02:54]} 7. Na4 {[%clk 0:02:53]}  d5 {[%clk 0:02:51]} 8. Nxc5 {[%clk 0:02:49]}  Bxc5 {[%clk 0:02:49]} 9. Bxc5 {[%clk 0:02:49]}  Qa5 {[%clk 0:02:47]} 10. Bd4 {[%clk 0:02:35]}  Nf6 {[%clk 0:02:35]} 11. Bxf6 {[%clk 0:02:32]}  gxf6 {[%clk 0:02:35]} 12. exd5 {[%clk 0:02:26]}  Bxd5 {[%clk 0:02:28]} 13. Qd2 {[%clk 0:02:25]}  Qb6 {[%clk 0:02:15]} 14. Be2 {[%clk 0:02:22]}  O-O {[%clk 0:02:13]} 15. f5 {[%clk 0:02:13]}  e5 {[%clk 0:02:07]} 16. Qh6 {[%clk 0:02:12]}  Nd7 {[%clk 0:01:59]} 17. Nd2 {[%clk 0:02:07]}  Kh8 {[%clk 0:01:55]} 18. g4 {[%clk 0:02:04]}  Rac8 {[%clk 0:01:49]} 19. Rg1 {[%clk 0:01:51]}  Qxg1+ {[%clk 0:01:47]} 20. Nf1 {[%clk 0:01:49]}  Rxc2 {[%clk 0:01:37]} 21. a3 {[%clk 0:01:32]}  b3 {[%clk 0:01:35]} 22. Rd1 {[%clk 0:01:28]}  Bf3 {[%clk 0:01:09]} 23. Rd2 {[%clk 0:01:19]}  Rc1+ {[%clk 0:00:59]} 24. Rd1 {[%clk 0:01:18]}  Rxd1+ {[%clk 0:00:58]} 25. Bxd1 {[%clk 0:01:15]}  Bxd1 {[%clk 0:00:57]} 26. Kxd1 {[%clk 0:01:14]}  Qxf1+ {[%clk 0:00:57]} 27. Kd2 {[%clk 0:01:11]}  Qf4+ {[%clk 0:00:57]} 0-1


[Site "https://www.chess.com"]

[Event "Titled Tuesday Blitz August 22 Early 2023"]
[White "Yuruultei Batbaatar"]
[Black "Feliz Dotel, Dewar Bienvenido"]
[WhiteFideId "4905962"]
[BlackFideId "6402801"]
[WhiteElo "2377"]
[BlackElo "2143"]
[Result "1-0"]
[Round "7"]
[TimeControl "180+1"]
[Date "2023.08.22"]
[WhiteClock "0:01:38"]
[BlackClock "0:00:00"]
[Board "181"]

1. d4 {[%clk 0:03:00]}  d5 {[%clk 0:02:58]} 2. c4 {[%clk 0:03:00]}  e6 {[%clk 0:02:58]} 3. Nc3 {[%clk 0:03:00]}  c5 {[%clk 0:02:58]} 4. cxd5 {[%clk 0:02:57]}  exd5 {[%clk 0:02:59]} 5. Nf3 {[%clk 0:02:58]}  Nc6 {[%clk 0:02:59]} 6. g3 {[%clk 0:02:58]}  Nf6 {[%clk 0:02:59]} 7. Bg2 {[%clk 0:02:59]}  Be7 {[%clk 0:02:59]} 8. O-O {[%clk 0:02:59]}  O-O {[%clk 0:02:55]} 9. dxc5 {[%clk 0:02:57]}  Bxc5 {[%clk 0:02:55]} 10. Bg5 {[%clk 0:02:58]}  Be6 {[%clk 0:02:49]} 11. Rc1 {[%clk 0:02:51]}  Be7 {[%clk 0:02:35]} 12. Nd4 {[%clk 0:02:47]}  Nxd4 {[%clk 0:02:27]} 13. Qxd4 {[%clk 0:02:48]}  h6 {[%clk 0:02:28]} 14. Be3 {[%clk 0:02:41]}  Qa5 {[%clk 0:02:03]} 15. Rfd1 {[%clk 0:02:34]}  Ng4 {[%clk 0:01:50]} 16. Nxd5 {[%clk 0:02:22]}  Bxd5 {[%clk 0:01:38]} 17. Bxd5 {[%clk 0:02:23]}  Nxe3 {[%clk 0:01:31]} 18. Qxe3 {[%clk 0:02:24]}  Bf6 {[%clk 0:01:28]} 19. Bxb7 {[%clk 0:02:15]}  Rab8 {[%clk 0:01:28]} 20. Rd7 {[%clk 0:02:15]}  Qxa2 {[%clk 0:01:19]} 21. Rcc7 {[%clk 0:02:10]}  Rbe8 {[%clk 0:01:11]} 22. Qf3 {[%clk 0:02:01]}  Qxb2 {[%clk 0:00:58]} 23. Bd5 {[%clk 0:01:57]}  Rxe2 {[%clk 0:00:52]} 24. Rxf7 {[%clk 0:01:49]}  Rxf7 {[%clk 0:00:12]} 25. Bxf7+ {[%clk 0:01:38]}  Kf8 {[%clk 0:00:00]} 26. Qa8+ {[%clk 0:01:38]} 1-0


[Site "https://www.chess.com"]

[Event "Titled Tuesday Blitz August 22 Early 2023"]
[White "Rodriguez Fontecha, Marcos"]
[Black "Nugumanov, Bakhtiyar"]
[WhiteFideId "2256576"]
[BlackFideId "13701797"]
[WhiteElo "2376"]
[BlackElo "2126"]
[Result "1-0"]
[Round "7"]
[TimeControl "180+1"]
[Date "2023.08.22"]
[WhiteClock "0:00:02"]
[BlackClock "0:00:00"]
[Board "182"]

1. e4 {[%clk 0:03:00]}  e6 {[%clk 0:02:59]} 2. d4 {[%clk 0:03:00]}  d5 {[%clk 0:02:59]} 3. Nc3 {[%clk 0:03:00]}  Bb4 {[%clk 0:03:00]} 4. Ne2 {[%clk 0:02:59]}  Nc6 {[%clk 0:02:59]} 5. a3 {[%clk 0:02:57]}  Ba5 {[%clk 0:02:59]} 6. b4 {[%clk 0:02:52]}  Bb6 {[%clk 0:03:00]} 7. exd5 {[%clk 0:02:47]}  exd5 {[%clk 0:02:59]} 8. Na4 {[%clk 0:02:46]}  Nf6 {[%clk 0:02:36]} 9. Nxb6 {[%clk 0:02:46]}  axb6 {[%clk 0:02:37]} 10. Ng3 {[%clk 0:02:40]}  O-O {[%clk 0:02:34]} 11. Be2 {[%clk 0:02:38]}  Re8 {[%clk 0:02:28]} 12. O-O {[%clk 0:02:38]}  Ne4 {[%clk 0:02:25]} 13. Be3 {[%clk 0:02:13]}  Nc3 {[%clk 0:02:04]} 14. Qd3 {[%clk 0:02:08]}  Nxe2+ {[%clk 0:02:02]} 15. Nxe2 {[%clk 0:02:09]}  Bg4 {[%clk 0:01:57]} 16. Nf4 {[%clk 0:02:02]}  Qd7 {[%clk 0:01:57]} 17. Qb3 {[%clk 0:01:57]}  Ne7 {[%clk 0:01:42]} 18. Nxd5 {[%clk 0:01:52]}  Nxd5 {[%clk 0:01:37]} 19. c4 {[%clk 0:01:48]}  Nf6 {[%clk 0:01:29]} 20. d5 {[%clk 0:01:39]}  Qf5 {[%clk 0:01:25]} 21. Rfe1 {[%clk 0:01:36]}  Qh5 {[%clk 0:01:16]} 22. Qc3 {[%clk 0:01:27]}  Qg6 {[%clk 0:01:14]} 23. Bd4 {[%clk 0:01:18]}  Ne4 {[%clk 0:01:08]} 24. Qd3 {[%clk 0:01:02]}  Bf5 {[%clk 0:01:07]} 25. Qb3 {[%clk 0:00:56]}  h5 {[%clk 0:01:02]} 26. Re3 {[%clk 0:00:48]}  Nd2 {[%clk 0:00:44]} 27. Qc3 {[%clk 0:00:47]}  Rxe3 {[%clk 0:00:41]} 28. Bxe3 {[%clk 0:00:46]}  Nf3+ {[%clk 0:00:34]} 29. Kh1 {[%clk 0:00:44]}  Nh4 {[%clk 0:00:33]} 30. g3 {[%clk 0:00:22]}  Bh3 {[%clk 0:00:20]} 31. Bf4 {[%clk 0:00:15]}  Qe4+ {[%clk 0:00:19]} 32. f3 {[%clk 0:00:14]}  Nxf3 {[%clk 0:00:19]} 33. Qe3 {[%clk 0:00:13]}  Re8 {[%clk 0:00:05]} 34. Qxe4 {[%clk 0:00:09]}  Rxe4 {[%clk 0:00:05]} 35. d6 {[%clk 0:00:03]}  Re2 {[%clk 0:00:00]} 36. g4 {[%clk 0:00:02]} 1-0


[Site "https://www.chess.com"]

[Event "Titled Tuesday Blitz August 22 Early 2023"]
[White "Kozelov, Roman"]
[Black "Kriti Mayur Patel"]
[WhiteFideId "14133377"]
[BlackFideId "35061780"]
[WhiteElo "2372"]
[BlackElo "2094"]
[Result "0-1"]
[Round "7"]
[TimeControl "180+1"]
[Date "2023.08.22"]
[WhiteClock "0:00:34"]
[BlackClock "0:00:18"]
[Board "183"]

1. e4 {[%clk 0:02:55]}  e5 {[%clk 0:03:00]} 2. Nf3 {[%clk 0:02:55]}  Nc6 {[%clk 0:03:00]} 3. d4 {[%clk 0:02:55]}  exd4 {[%clk 0:03:00]} 4. Nxd4 {[%clk 0:02:56]}  Bb4+ {[%clk 0:03:00]} 5. c3 {[%clk 0:02:56]}  Bc5 {[%clk 0:03:01]} 6. Be3 {[%clk 0:02:56]}  Bb6 {[%clk 0:03:01]} 7. Bc4 {[%clk 0:02:56]}  Nf6 {[%clk 0:03:00]} 8. O-O {[%clk 0:02:47]}  d6 {[%clk 0:03:01]} 9. Nxc6 {[%clk 0:02:44]}  bxc6 {[%clk 0:03:00]} 10. Bg5 {[%clk 0:02:44]}  Qe7 {[%clk 0:02:50]} 11. Nd2 {[%clk 0:02:42]}  h6 {[%clk 0:02:45]} 12. Bh4 {[%clk 0:02:40]}  g5 {[%clk 0:02:42]} 13. Bg3 {[%clk 0:02:40]}  Bg4 {[%clk 0:02:40]} 14. Qb3 {[%clk 0:02:35]}  Rb8 {[%clk 0:02:35]} 15. Qa4 {[%clk 0:02:33]}  Bd7 {[%clk 0:02:31]} 16. Rae1 {[%clk 0:02:29]}  Ng4 {[%clk 0:02:08]} 17. h3 {[%clk 0:02:17]}  Ne5 {[%clk 0:02:07]} 18. Kh2 {[%clk 0:02:12]}  h5 {[%clk 0:01:52]} 19. f4 {[%clk 0:02:11]}  h4 {[%clk 0:01:51]} 20. fxe5 {[%clk 0:02:06]}  hxg3+ {[%clk 0:01:51]} 21. Kxg3 {[%clk 0:02:01]}  Qxe5+ {[%clk 0:01:47]} 22. Kf3 {[%clk 0:02:01]}  Rh4 {[%clk 0:01:00]} 23. Ke2 {[%clk 0:01:57]}  g4 {[%clk 0:00:53]} 24. Rxf7 {[%clk 0:01:47]}  gxh3 {[%clk 0:00:39]} 25. Ref1 {[%clk 0:01:47]}  Rxe4+ {[%clk 0:00:27]} 26. Nxe4 {[%clk 0:01:45]}  Qxe4+ {[%clk 0:00:27]} 27. Kd1 {[%clk 0:01:45]}  Bg4+ {[%clk 0:00:23]} 28. R7f3 {[%clk 0:01:28]}  hxg2 {[%clk 0:00:20]} 29. Kc1 {[%clk 0:00:37]}  gxf1=Q+ {[%clk 0:00:17]} 30. Rxf1 {[%clk 0:00:34]}  Be3# {[%clk 0:00:18]} 0-1


[Site "https://www.chess.com"]

[Event "Titled Tuesday Blitz August 22 Early 2023"]
[White "Berezin, Viktor"]
[Black "Carre, Sylvain"]
[WhiteFideId "14107872"]
[BlackFideId "642118"]
[WhiteElo "2470"]
[BlackElo "2333"]
[Result "0-1"]
[Round "7"]
[TimeControl "180+1"]
[Date "2023.08.22"]
[WhiteClock "0:00:50"]
[BlackClock "0:00:06"]
[Board "185"]

1. Nf3 {[%clk 0:02:54]}  d5 {[%clk 0:02:57]} 2. c4 {[%clk 0:02:54]}  c6 {[%clk 0:02:57]} 3. g3 {[%clk 0:02:53]}  Nf6 {[%clk 0:02:57]} 4. Bg2 {[%clk 0:02:54]}  Bf5 {[%clk 0:02:58]} 5. O-O {[%clk 0:02:54]}  e6 {[%clk 0:02:58]} 6. d3 {[%clk 0:02:55]}  dxc4 {[%clk 0:02:57]} 7. dxc4 {[%clk 0:02:54]}  Qxd1 {[%clk 0:02:58]} 8. Rxd1 {[%clk 0:02:55]}  Be7 {[%clk 0:02:56]} 9. Nc3 {[%clk 0:02:55]}  O-O {[%clk 0:02:56]} 10. Nd4 {[%clk 0:02:54]}  Bg6 {[%clk 0:02:56]} 11. Bg5 {[%clk 0:02:51]}  Na6 {[%clk 0:02:33]} 12. a3 {[%clk 0:02:51]}  Rad8 {[%clk 0:02:24]} 13. b4 {[%clk 0:02:41]}  h6 {[%clk 0:02:15]} 14. Bf4 {[%clk 0:02:33]}  Ng4 {[%clk 0:02:05]} 15. h3 {[%clk 0:02:31]}  e5 {[%clk 0:01:59]} 16. hxg4 {[%clk 0:02:26]}  exd4 {[%clk 0:01:56]} 17. Ne4 {[%clk 0:02:23]}  Rfe8 {[%clk 0:01:40]} 18. Nd2 {[%clk 0:02:04]}  Bf6 {[%clk 0:01:24]} 19. Bf3 {[%clk 0:01:51]}  Bc2 {[%clk 0:01:22]} 20. Re1 {[%clk 0:01:48]}  d3 {[%clk 0:01:20]} 21. Rac1 {[%clk 0:01:47]}  Bb2 {[%clk 0:01:19]} 22. Be4 {[%clk 0:01:41]}  g5 {[%clk 0:00:56]} 23. Be3 {[%clk 0:01:36]}  Bxc1 {[%clk 0:00:43]} 24. Rxc1 {[%clk 0:01:36]}  Rxe4 {[%clk 0:00:25]} 25. Nxe4 {[%clk 0:01:32]}  dxe2 {[%clk 0:00:23]} 26. Nd2 {[%clk 0:01:19]}  Bd1 {[%clk 0:00:15]} 27. Nf3 {[%clk 0:01:19]}  Nc7 {[%clk 0:00:07]} 28. Bxa7 {[%clk 0:01:18]}  Ne6 {[%clk 0:00:08]} 29. Be3 {[%clk 0:01:17]}  Ra8 {[%clk 0:00:07]} 30. Ra1 {[%clk 0:01:15]}  Rd8 {[%clk 0:00:06]} 31. Ne1 {[%clk 0:01:15]}  Nd4 {[%clk 0:00:06]} 32. a4 {[%clk 0:01:14]}  Nc2 {[%clk 0:00:05]} 33. Nxc2 {[%clk 0:01:06]}  Bxc2 {[%clk 0:00:06]} 34. Re1 {[%clk 0:00:50]}  Rd1 {[%clk 0:00:06]} 0-1


[Site "https://www.chess.com"]

[Event "Titled Tuesday Blitz August 22 Early 2023"]
[White "Fernandez Garcia, Gumersindo"]
[Black "Zampronha, Wladimir Camilo"]
[WhiteFideId "24516740"]
[BlackFideId "2103087"]
[WhiteElo "2395"]
[BlackElo "2270"]
[Result "0-1"]
[Round "7"]
[TimeControl "180+1"]
[Date "2023.08.22"]
[WhiteClock "0:00:42"]
[BlackClock "0:00:57"]
[Board "187"]

1. e4 {[%clk 0:03:00]}  c5 {[%clk 0:02:59]} 2. a3 {[%clk 0:02:59]}  d5 {[%clk 0:02:58]} 3. exd5 {[%clk 0:02:56]}  Qxd5 {[%clk 0:02:58]} 4. b4 {[%clk 0:02:54]}  Qe5+ {[%clk 0:02:53]} 5. Be2 {[%clk 0:02:36]}  Qxa1 {[%clk 0:02:54]} 6. Nc3 {[%clk 0:02:36]}  cxb4 {[%clk 0:02:54]} 7. axb4 {[%clk 0:02:32]}  e6 {[%clk 0:02:45]} 8. Bb5+ {[%clk 0:02:17]}  Bd7 {[%clk 0:02:43]} 9. Nge2 {[%clk 0:02:08]}  Bxb4 {[%clk 0:02:42]} 10. O-O {[%clk 0:02:08]}  Qa5 {[%clk 0:02:42]} 11. Bxd7+ {[%clk 0:02:01]}  Nxd7 {[%clk 0:02:41]} 12. Bb2 {[%clk 0:02:02]}  Ngf6 {[%clk 0:02:40]} 13. f4 {[%clk 0:01:30]}  O-O {[%clk 0:02:34]} 14. f5 {[%clk 0:01:31]}  exf5 {[%clk 0:02:29]} 15. Ng3 {[%clk 0:01:29]}  g6 {[%clk 0:02:23]} 16. Nce2 {[%clk 0:01:09]}  Bxd2 {[%clk 0:02:11]} 17. Kh1 {[%clk 0:01:09]}  Rfd8 {[%clk 0:02:02]} 18. Nd4 {[%clk 0:01:03]}  Bc3 {[%clk 0:01:55]} 19. Nb3 {[%clk 0:01:01]}  Qb4 {[%clk 0:01:54]} 20. Bc1 {[%clk 0:01:01]}  a5 {[%clk 0:01:48]} 21. Rf4 {[%clk 0:00:58]}  Qf8 {[%clk 0:01:40]} 22. Qf3 {[%clk 0:00:57]}  Be5 {[%clk 0:01:31]} 23. Rh4 {[%clk 0:00:56]}  a4 {[%clk 0:01:26]} 24. Bh6 {[%clk 0:00:49]}  axb3 {[%clk 0:01:21]} 25. cxb3 {[%clk 0:00:44]}  Bxg3 {[%clk 0:01:12]} 26. hxg3 {[%clk 0:00:41]}  Qd6 {[%clk 0:01:02]} 27. Bf4 {[%clk 0:00:41]}  Qc6 {[%clk 0:00:59]} 28. Kh2 {[%clk 0:00:41]}  Qxf3 {[%clk 0:00:57]} 29. gxf3 {[%clk 0:00:42]} 0-1


[Site "https://www.chess.com"]

[Event "Titled Tuesday Blitz August 22 Early 2023"]
[White "Nosacheva, Mariya"]
[Black "Kaminski, Victor"]
[WhiteFideId "34111422"]
[BlackFideId "1131630"]
[WhiteElo "2389"]
[BlackElo "2253"]
[Result "0-1"]
[Round "7"]
[TimeControl "180+1"]
[Date "2023.08.22"]
[WhiteClock "0:00:35"]
[BlackClock "0:00:10"]
[Board "189"]

1. e4 {[%clk 0:03:00]}  e5 {[%clk 0:02:55]} 2. Nf3 {[%clk 0:02:58]}  Nc6 {[%clk 0:02:54]} 3. Bc4 {[%clk 0:02:58]}  Bc5 {[%clk 0:02:53]} 4. O-O {[%clk 0:02:57]}  Nf6 {[%clk 0:02:48]} 5. d4 {[%clk 0:02:58]}  Bxd4 {[%clk 0:02:48]} 6. Nxd4 {[%clk 0:02:57]}  Nxd4 {[%clk 0:02:49]} 7. f4 {[%clk 0:02:57]}  d6 {[%clk 0:02:50]} 8. fxe5 {[%clk 0:02:58]}  dxe5 {[%clk 0:02:50]} 9. Bg5 {[%clk 0:02:58]}  O-O {[%clk 0:02:47]} 10. Bxf6 {[%clk 0:02:52]}  gxf6 {[%clk 0:02:47]} 11. Na3 {[%clk 0:02:36]}  Ne6 {[%clk 0:02:41]} 12. Qf3 {[%clk 0:02:29]}  Ng5 {[%clk 0:02:33]} 13. Qe2 {[%clk 0:02:19]}  Qd4+ {[%clk 0:02:29]} 14. Kh1 {[%clk 0:02:15]}  Qxe4 {[%clk 0:02:22]} 15. Qxe4 {[%clk 0:02:06]}  Nxe4 {[%clk 0:02:23]} 16. Bd5 {[%clk 0:02:04]}  f5 {[%clk 0:02:12]} 17. Rae1 {[%clk 0:02:02]}  c6 {[%clk 0:01:59]} 18. Bxe4 {[%clk 0:02:02]}  fxe4 {[%clk 0:01:59]} 19. Rxe4 {[%clk 0:01:57]}  f6 {[%clk 0:01:59]} 20. g4 {[%clk 0:01:56]}  Be6 {[%clk 0:01:58]} 21. c4 {[%clk 0:01:56]}  h6 {[%clk 0:01:55]} 22. h4 {[%clk 0:01:55]}  Kg7 {[%clk 0:01:54]} 23. g5 {[%clk 0:01:55]}  hxg5 {[%clk 0:01:40]} 24. hxg5 {[%clk 0:01:54]}  fxg5 {[%clk 0:01:35]} 25. Rxf8 {[%clk 0:01:46]}  Rxf8 {[%clk 0:01:34]} 26. Rxe5 {[%clk 0:01:47]}  Kf6 {[%clk 0:01:33]} 27. Re2 {[%clk 0:01:41]}  Rh8+ {[%clk 0:01:33]} 28. Kg1 {[%clk 0:01:40]}  Rh4 {[%clk 0:01:25]} 29. b3 {[%clk 0:01:40]}  a5 {[%clk 0:01:24]} 30. Nc2 {[%clk 0:01:40]}  a4 {[%clk 0:01:23]} 31. Rf2+ {[%clk 0:01:37]}  Kg6 {[%clk 0:01:20]} 32. Re2 {[%clk 0:01:35]}  Kf7 {[%clk 0:01:09]} 33. Kg2 {[%clk 0:01:28]}  Rg4+ {[%clk 0:01:00]} 34. Kf2 {[%clk 0:01:24]}  Rf4+ {[%clk 0:00:59]} 35. Kg2 {[%clk 0:01:23]}  Bg4 {[%clk 0:00:46]} 36. Rd2 {[%clk 0:01:21]}  Bf5 {[%clk 0:00:43]} 37. Nd4 {[%clk 0:01:04]}  Be4+ {[%clk 0:00:39]} 38. Kg1 {[%clk 0:00:57]}  a3 {[%clk 0:00:35]} 39. Kh2 {[%clk 0:00:52]}  Bb1 {[%clk 0:00:24]} 40. Kg3 {[%clk 0:00:49]}  Bxa2 {[%clk 0:00:20]} 41. Nxc6 {[%clk 0:00:49]}  Bxb3 {[%clk 0:00:14]} 42. Ne5+ {[%clk 0:00:46]}  Ke6 {[%clk 0:00:13]} 43. Re2 {[%clk 0:00:44]}  Kf5 {[%clk 0:00:10]} 44. c5 {[%clk 0:00:35]}  Re4 {[%clk 0:00:10]} 0-1


[Site "https://www.chess.com"]

[Event "Titled Tuesday Blitz August 22 Early 2023"]
[White "Senft, Sean"]
[Black "Semenova, Alina"]
[WhiteFideId "2044960"]
[BlackFideId "24113875"]
[WhiteElo "2339"]
[BlackElo "2067"]
[Result "0-1"]
[Round "7"]
[TimeControl "180+1"]
[Date "2023.08.22"]
[WhiteClock "0:00:00"]
[BlackClock "0:00:20"]
[Board "193"]

1. d4 {[%clk 0:03:00]}  d5 {[%clk 0:02:59]} 2. c4 {[%clk 0:03:01]}  e6 {[%clk 0:02:57]} 3. cxd5 {[%clk 0:03:02]}  exd5 {[%clk 0:02:56]} 4. Nc3 {[%clk 0:03:02]}  Nf6 {[%clk 0:02:53]} 5. Nf3 {[%clk 0:03:03]}  Be7 {[%clk 0:02:52]} 6. Bg5 {[%clk 0:03:04]}  O-O {[%clk 0:02:53]} 7. e3 {[%clk 0:03:04]}  c6 {[%clk 0:02:53]} 8. Bd3 {[%clk 0:03:05]}  Nbd7 {[%clk 0:02:52]} 9. Qc2 {[%clk 0:03:05]}  h6 {[%clk 0:02:52]} 10. Bh4 {[%clk 0:03:05]}  Re8 {[%clk 0:02:52]} 11. O-O {[%clk 0:03:06]}  Ne4 {[%clk 0:02:50]} 12. Bxe7 {[%clk 0:02:44]}  Qxe7 {[%clk 0:02:51]} 13. Nd2 {[%clk 0:02:44]}  Nxd2 {[%clk 0:02:45]} 14. Qxd2 {[%clk 0:02:42]}  Nf6 {[%clk 0:02:45]} 15. Rac1 {[%clk 0:02:41]}  Ng4 {[%clk 0:02:42]} 16. h3 {[%clk 0:02:30]}  Nf6 {[%clk 0:02:42]} 17. Bb1 {[%clk 0:02:29]}  a5 {[%clk 0:02:33]} 18. Na4 {[%clk 0:02:25]}  Nh5 {[%clk 0:02:31]} 19. Qd3 {[%clk 0:02:17]}  g6 {[%clk 0:02:31]} 20. Nb6 {[%clk 0:02:13]}  Bf5 {[%clk 0:02:19]} 21. Qc3 {[%clk 0:01:57]}  Bxb1 {[%clk 0:02:18]} 22. Nxa8 {[%clk 0:01:47]}  Bf5 {[%clk 0:02:09]} 23. Nb6 {[%clk 0:01:38]}  Qh4 {[%clk 0:02:07]} 24. Qxa5 {[%clk 0:00:56]}  Nf6 {[%clk 0:01:01]} 25. Qe1 {[%clk 0:00:33]}  g5 {[%clk 0:00:39]} 26. f3 {[%clk 0:00:31]}  Qh5 {[%clk 0:00:36]} 27. g4 {[%clk 0:00:18]}  Qxh3 {[%clk 0:00:33]} 28. gxf5 {[%clk 0:00:18]}  Rxe3 {[%clk 0:00:33]} 29. Qf2 {[%clk 0:00:12]}  Nh5 {[%clk 0:00:32]} 30. Rc2 {[%clk 0:00:10]}  Nf4 {[%clk 0:00:28]} 31. Qxe3 {[%clk 0:00:08]}  Qg3+ {[%clk 0:00:27]} 32. Kh1 {[%clk 0:00:08]}  Qh3+ {[%clk 0:00:28]} 33. Kg1 {[%clk 0:00:02]}  Qg3+ {[%clk 0:00:28]} 34. Kh1 {[%clk 0:00:03]}  Qh3+ {[%clk 0:00:28]} 35. Rh2 {[%clk 0:00:03]}  Qxf1+ {[%clk 0:00:28]} 36. Qg1 {[%clk 0:00:04]}  Qxf3+ {[%clk 0:00:27]} 37. Rg2 {[%clk 0:00:04]}  h5 {[%clk 0:00:23]} 38. Nd7 {[%clk 0:00:02]}  h4 {[%clk 0:00:22]} 39. Nf6+ {[%clk 0:00:00]}  Kg7 {[%clk 0:00:20]} 0-1


[Site "https://www.chess.com"]